bitfinex-derivatives/quotes_SOLF0:USTF0_20220104
["timestamp","ask_amount","ask_price","bid_price","bid_amount"]
[1641325229878,2.89036719,168.17,168.14,31.80579]
[1641325230477,2.89036719,168.17,168.15,27.66479]
[1641325230776,2.89036719,168.17,168.15,30.66479]
[1641325231276,2.81198165,168.16,168.15,32.04637131]
[1641325231575,33.54081108,168.23,168.15,32.04637131]
[1641325231774,33.54081108,168.23,168.18,3.0]
[1641325231976,10.6064341,168.24,168.18,8.836]
[1641325232178,10.6064341,168.24,168.21,3.0]
[1641325232376,1e-08,168.24,168.23,4.0]
[1641325232576,1e-08,168.24,168.23,40.45479]
[1641325232979,33.54081108,168.25,168.23,40.45479]
[1641325233178,33.54081108,168.28,168.23,40.45479]
[1641325233477,33.54081108,168.28,168.23,37.45479]
[1641325233677,33.54081108,168.28,168.26,4.0]
[1641325234479,33.54081108,168.32,168.27,27.66479]
[1641325234680,33.54081108,168.32,168.27,32.26779]
[1641325235282,33.54081108,168.32,168.27,4.603]
[1641325236080,33.54081108,168.33,168.27,7.603]
[1641325236480,33.54081108,168.33,168.27,32.26779]
[1641325236883,64.0658,168.36,168.27,32.26779]
[1641325237782,67.0658,168.36,168.27,32.26779]
[1641325240591,94.73059,168.36,168.27,32.26779]
[1641325241092,91.73059,168.36,168.27,32.26779]
[1641325241293,94.73059,168.36,168.27,32.26779]
[1641325241491,128.27140108,168.36,168.27,32.26779]
[1641325241691,3.0,168.35,168.27,32.26779]
[1641325242191,3.0,168.32,168.27,32.26779]
[1641325246197,94.73059,168.36,168.27,32.26779]
[1641325246397,125.27140108,168.36,168.27,32.26779]
[1641325246597,91.73059,168.36,168.27,32.26779]
[1641325247897,91.73059,168.36,168.28,3.0]
[1641325248297,27.66479,168.36,168.28,3.0]
[1641325248701,27.66479,168.36,168.27,32.26779]
[1641325250100,30.66479,168.36,168.27,32.26779]
[1641325251902,27.66479,168.36,168.27,32.26779]
[1641325252603,102.22741108,168.38,168.27,59.93258]
[1641325253005,68.6866,168.38,168.28,7.17231809]
[1641325253203,68.6866,168.38,168.28,10.17231809]
[1641325253604,68.6866,168.38,168.28,7.17231809]
[1641325253803,65.6866,168.38,168.28,7.17231809]
[1641325254003,68.6866,168.38,168.28,7.17231809]
[1641325255604,68.6866,168.38,168.28,10.17231809]
[1641325255804,68.6866,168.38,168.28,7.17231809]
[1641325256004,65.6866,168.38,168.28,7.17231809]
[1641325256405,3.0,168.34,168.28,7.17231809]
[1641325256605,3.0,168.35,168.28,7.17231809]
[1641325256807,30.66479,168.36,168.28,7.17231809]
[1641325257507,27.66479,168.36,168.28,12.00331809]
[1641325257908,12.572745,168.36,168.29,12.572745]
[1641325258610,12.572745,168.37,168.3,40.237535]
[1641325259209,15.572745,168.37,168.3,40.237535]
[1641325259810,12.572745,168.37,168.3,40.237535]
[1641325260112,3.0,168.37,168.31,19.74506309]
[1641325261512,68.6866,168.38,168.31,19.74506309]
[1641325261915,68.6866,168.38,168.33,12.572745]
[1641325262213,3.0,168.38,168.33,12.572745]
[1641325262414,3.0,168.38,168.33,18.138745]
[1641325262813,3.0,168.37,168.33,18.138745]
[1641325263413,27.66479,168.39,168.33,18.138745]
[1641325263615,12.572745,168.41,168.33,18.138745]
[1641325264917,79.731245,168.42,168.34,12.572745]
[1641325265716,76.731245,168.42,168.34,12.572745]
[1641325266116,4.18943696,168.39,168.38,4.18943696]
[1641325266321,4.18943696,168.39,168.38,8.36243696]
[1641325266919,4.18943696,168.39,168.38,4.173]
[1641325267321,4.18943696,168.4,168.38,4.173]
[1641325267720,4.18943696,168.4,168.38,8.173]
[1641325268020,1.1928788,168.44,168.38,8.173]
[1641325268822,1.1928788,168.44,168.38,4.173]
[1641325269020,40.237535,168.47,168.38,4.173]
[1641325269220,27.66479,168.47,168.42,12.56154815]
[1641325269421,27.66479,168.47,168.42,19.05354815]
[1641325270322,27.66479,168.47,168.42,6.492]
[1641325270725,3.0,168.44,168.42,6.492]
[1641325270923,3.0,168.44,168.41,12.56154815]
[1641325271122,3.0,168.45,168.41,12.56154815]
[1641325271524,12.572745,168.43,168.36,27.66479]
[1641325272923,12.572745,168.39,168.36,27.66479]
[1641325274426,12.572745,168.4,168.36,27.66479]
[1641325275527,12.572745,168.39,168.36,27.66479]
[1641325276026,12.572745,168.4,168.36,27.66479]
[1641325276728,12.572745,168.4,168.34,88.75589]
[1641325277026,17.688745,168.4,168.32,12.56154815]
[1641325277227,20.688745,168.4,168.32,12.56154815]
[1641325277728,17.688745,168.4,168.32,12.56154815]
[1641325277928,12.572745,168.4,168.32,12.56154815]
[1641325278328,12.572745,168.38,168.31,21.47478432]
[1641325279329,12.572745,168.39,168.31,21.47478432]
[1641325279529,12.572745,168.39,168.31,26.76778432]
[1641325279929,12.572745,168.38,168.32,1.66932426]
[1641325281334,12.572745,168.37,168.32,1.66932426]
[1641325282233,15.09150198,168.37,168.31,1.66932426]
[1641325282933,12.572745,168.37,168.31,1.66932426]
[1641325284637,15.09150198,168.37,168.31,1.66932426]
[1641325286538,12.572745,168.37,168.31,1.66932426]
[1641325287442,15.09150198,168.37,168.31,1.66932426]
[1641325287641,15.09150198,168.37,168.31,7.62332426]
[1641325288041,12.572745,168.37,168.31,7.62332426]
[1641325288842,12.572745,168.37,168.32,1.66932426]
[1641325289944,15.09150198,168.38,168.32,1.66932426]
[1641325290643,15.09150198,168.38,168.32,14.23087241]
[1641325290644,2.51875698,168.38,168.32,14.23087241]
[1641325292149,15.09150198,168.4,168.32,14.23087241]
[1641325292751,15.09150198,168.4,168.33,12.56154815]
[1641325292752,12.572745,168.4,168.33,12.56154815]
[1641325293451,12.572745,168.4,168.33,16.56154815]
[1641325293651,12.572745,168.4,168.33,12.56154815]
[1641325294253,12.572745,168.4,168.32,4.66932426]
[1641325294254,2.51875698,168.41,168.35,12.56154815]
[1641325294453,2.51875698,168.41,168.35,18.85054815]
[1641325294857,3.0,168.4,168.36,1.66932426]
[1641325295056,8.333,168.4,168.36,1.66932426]
[1641325295455,3.0,168.39,168.36,1.66932426]
[1641325295655,2.51875698,168.41,168.36,1.66932426]
[1641325295855,2.51875698,168.41,168.36,7.45032426]
[1641325296256,15.09150198,168.39,168.36,5.781]
[1641325297159,12.572745,168.4,168.36,5.781]
[1641325298161,15.09150198,168.41,168.37,1.66945418]
[1641325299562,12.572745,168.4,168.37,1.66945418]
[1641325300563,15.09150198,168.41,168.37,1.66945418]
[1641325301267,15.09150198,168.41,168.36,5.781]
[1641325301465,15.09150198,168.41,168.34,27.66479]
[1641325301466,12.572745,168.4,168.34,27.66479]
[1641325302065,12.572745,168.4,168.35,1.66942142]
[1641325304168,12.572745,168.39,168.35,1.66942142]
[1641325304768,12.572745,168.4,168.35,1.66942142]
[1641325307970,12.572745,168.4,168.33,1.66942142]
[1641325310573,3.0,168.39,168.33,1.66942142]
[1641325310874,3.0,168.37,168.33,1.66942142]
[1641325311074,12.572745,168.37,168.31,1.66942142]
[1641325311274,3.0,168.35,168.31,1.66942142]
[1641325312477,3.0,168.34,168.31,1.66942142]
[1641325313281,2.51875698,168.33,168.26,12.56154815]
[1641325314282,15.08811745,168.34,168.26,12.56154815]
[1641325314483,15.08811745,168.34,168.26,18.91354815]
[1641325315084,2.52040529,168.34,168.27,14.23096957]
[1641325315486,5.52040529,168.34,168.27,14.23096957]
[1641325315686,3.0,168.34,168.27,14.23096957]
[1641325316086,15.56771216,168.35,168.27,14.23096957]
[1641325316286,3.0,168.34,168.27,14.23096957]
[1641325316785,3.0,168.29,168.26,12.56154815]
[1641325316986,3.0,168.3,168.26,12.56154815]
[1641325317890,2.52141893,168.29,168.23,1.66942142]
[1641325318690,3.0,168.3,168.23,1.66942142]
[1641325318888,3.0,168.3,168.22,12.56154815]
[1641325319089,3.0,168.29,168.22,12.56154815]
[1641325319589,3.0,168.3,168.22,12.56154815]
[1641325319989,2.52159714,168.29,168.22,12.56154815]
[1641325320591,5.5215402,168.3,168.22,14.23096957]
[1641325320890,3.0,168.29,168.22,14.23096957]
[1641325321495,5.52160214,168.29,168.22,14.23096957]
[1641325321692,3.0,168.28,168.22,14.23096957]
[1641325322294,5.52224936,168.27,168.22,1.66942142]
[1641325322892,3.0,168.26,168.22,1.66942142]
[1641325323292,3.0,168.27,168.22,1.66942142]
[1641325323493,27.66479,168.26,168.2,14.23096957]
[1641325323693,30.18753808,168.26,168.2,1.66942142]
[1641325324394,2.522738,168.25,168.2,1.66942142]
[1641325325197,27.66479,168.26,168.2,1.66942142]
[1641325325401,27.66479,168.26,168.21,12.56154815]
[1641325325902,12.57160141,168.29,168.21,12.56154815]
[1641325327802,2.52202166,168.29,168.22,12.56154815]
[1641325328402,2.52202166,168.29,168.26,4.19084218]
[1641325331909,3.0,168.28,168.26,4.19084218]
[1641325332209,3.0,168.29,168.26,4.19084218]
[1641325332408,3.0,168.29,168.19,31.85563218]
[1641325332608,27.66479,168.31,168.19,31.85563218]
[1641325332910,3.0,168.29,168.19,31.85563218]
[1641325333110,3.0,168.3,168.19,31.85563218]
[1641325333310,3.0,168.3,168.19,34.41479]
[1641325333608,3.0,168.3,168.19,6.75]
[1641325333609,27.66479,168.28,168.19,6.75]
[1641325334711,27.66479,168.28,168.25,12.56154815]
[1641325335512,27.66479,168.28,168.27,4.19045286]
[1641325335712,43.23639141,168.31,168.27,4.19045286]
[1641325336612,3.0,168.3,168.27,4.19045286]
[1641325336816,5.52132014,168.3,168.27,4.19045286]
[1641325337515,2.52132014,168.29,168.27,4.19045286]
[1641325338115,2.52132014,168.29,168.28,4.19045286]
[1641325338916,2.52132014,168.29,168.27,4.19045286]
[1641325342531,2.52132014,168.29,168.28,4.19045286]
[1641325344740,3.0,168.3,168.24,12.56154815]
[1641325345035,4.19031244,168.29,168.25,12.56154815]
[1641325345434,10.18131244,168.29,168.25,12.56154815]
[1641325345635,7.19031244,168.28,168.24,12.56154815]
[1641325345835,3.0,168.27,168.24,12.56154815]
[1641325346037,27.66479,168.25,168.24,12.56154815]
[1641325346236,30.66479,168.25,168.24,12.56154815]
[1641325346438,37.21879,168.25,168.24,12.56154815]
[1641325346737,41.40910244,168.25,168.21,12.56154815]
[1641325347538,4.19031244,168.24,168.2,12.56154815]
[1641325347742,3.0,168.22,168.2,12.56154815]
[1641325347939,3.0,168.21,168.18,8.9131199]
[1641325348138,27.66479,168.19,168.18,1.99e-05]
[1641325348338,30.66479,168.19,168.18,1.99e-05]
[1641325348539,30.66479,168.19,168.12,33.54081108]
[1641325349042,3.0,168.17,168.12,33.54081108]
[1641325349240,30.66479,168.19,168.12,33.54081108]
[1641325349842,4.19267093,168.17,168.09,98.85031108]
[1641325350240,27.66479,168.16,168.09,98.85031108]
[1641325350641,27.66479,168.16,168.1,44.83499527]
[1641325351342,27.66479,168.16,168.1,49.86299527]
[1641325351544,4.19267093,168.18,168.1,49.86299527]
[1641325351545,33.54081108,168.25,168.1,49.86299527]
[1641325351743,33.54081108,168.25,168.13,3.0]
[1641325351945,33.54081108,168.25,168.15,4.0]
[1641325352145,3.0,168.33,168.15,4.0]
[1641325352146,61.20560108,168.31,168.22,27.66479]
[1641325352346,61.20560108,168.31,168.22,33.47079]
[1641325353347,3.0,168.3,168.22,33.47079]
[1641325353547,30.66479,168.31,168.22,5.806]
[1641325354148,3.0,168.3,168.22,5.806]
[1641325354346,30.66479,168.31,168.22,5.806]
[1641325354948,27.66479,168.31,168.22,5.806]
[1641325355246,30.66479,168.31,168.22,5.806]
[1641325355449,3.0,168.3,168.2,27.66479]
[1641325356149,3.0,168.27,168.18,64.5931]
[1641325356349,3.0,168.26,168.16,33.54081108]
[1641325356549,5.969,168.26,168.16,33.54081108]
[1641325356949,5.969,168.26,168.14,27.66479]
[1641325357749,3.0,168.27,168.14,61.20560108]
[1641325358351,27.66479,168.23,168.14,61.20560108]
[1641325358551,32.68879,168.23,168.14,27.66479]
[1641325358851,32.68879,168.23,168.13,44.3682993]
[1641325359756,32.68879,168.23,168.13,33.54081108]
[1641325359956,32.68879,168.23,168.12,62.7882]
[1641325360558,35.68879,168.23,168.12,62.7882]
[1641325361259,30.66479,168.23,168.12,62.7882]
[1641325362559,27.66479,168.23,168.12,62.7882]
[1641325363960,30.66479,168.23,168.12,62.7882]
[1641325365863,3.0,168.21,168.12,62.7882]
[1641325366165,5.14,168.21,168.12,62.7882]
[1641325366463,27.66479,168.19,168.12,62.7882]
[1641325366664,27.66479,168.19,168.1,33.54081108]
[1641325367264,27.66479,168.19,168.09,98.60331108]
[1641325367664,33.73379,168.19,168.09,98.60331108]
[1641325368365,27.66479,168.16,168.09,98.60331108]
[1641325368565,27.66479,168.16,168.09,33.54081108]
[1641325368966,27.66479,168.16,168.1,6.8300936]
[1641325370070,27.66479,168.16,168.09,6.8300936]
[1641325371971,33.65879,168.16,168.09,6.8300936]
[1641325372673,33.65879,168.16,168.08,33.54081108]
[1641325375175,33.65879,168.16,168.09,33.54081108]
[1641325375576,27.66479,168.16,168.09,36.54081108]
[1641325375778,27.66479,168.16,168.1,33.54081108]
[1641325375976,27.66479,168.16,168.1,38.02781108]
[1641325376176,91.94929,168.19,168.1,38.02781108]
[1641325376376,27.66479,168.19,168.1,41.02781108]
[1641325376577,27.66479,168.19,168.12,3.0]
[1641325376979,27.66479,168.23,168.12,3.0]
[1641325377178,33.54081108,168.25,168.14,3.0]
[1641325377379,33.54081108,168.26,168.16,3.0]
[1641325378080,33.54081108,168.26,168.18,3.0]
[1641325378283,12.57436639,168.26,168.18,21.59236639]
[1641325378481,12.57436639,168.26,168.19,27.66479]
[1641325378985,12.57436639,168.26,168.19,30.66479]
[1641325379182,12.57436639,168.26,168.2,3.0]
[1641325379584,12.57436639,168.28,168.2,19.40445999]
[1641325380383,12.57436639,168.28,168.2,12.57436639]
[1641325380584,12.57436639,168.27,168.19,40.23915639]
[1641325381586,12.57436639,168.27,168.21,3.0]
[1641325381784,12.57436639,168.27,168.21,8.016]
[1641325381985,43.47490259,168.3,168.24,3.0]
[1641325381986,12.57436639,168.28,168.24,3.0]
[1641325382185,9.93409151,168.3,168.25,3.0]
[1641325382485,9.93409151,168.3,168.26,30.66479]
[1641325382686,9.93409151,168.3,168.26,27.66479]
[1641325382885,33.54081108,168.35,168.26,30.66479]
[1641325383888,33.54081108,168.35,168.28,3.0]
[1641325384289,61.20560108,168.39,168.28,3.0]
[1641325384489,33.54081108,168.39,168.33,27.66479]
[1641325384690,33.54081108,168.39,168.33,34.28779]
[1641325385491,9.62156348,168.41,168.33,37.28779]
[1641325386292,9.62156348,168.41,168.33,34.28779]
[1641325386893,9.62156348,168.41,168.35,3.0]
[1641325387093,9.62156348,168.41,168.36,3.0]
[1641325387694,9.62156348,168.41,168.37,3.0]
[1641325387994,27.66479,168.45,168.37,3.0]
[1641325388194,27.66479,168.45,168.37,7.601]
[1641325388695,27.66479,168.45,168.37,35.26579]
[1641325388894,27.66479,168.45,168.38,7.0]
[1641325389095,2.55926147,168.44,168.39,3.0]
[1641325389494,2.55926147,168.44,168.38,8.62737439]
[1641325389695,2.55926147,168.44,168.38,5.62737439]
[1641325389894,4.564,168.44,168.4,1.62737439]
[1641325390696,2.55920889,168.43,168.38,1.62737439]
[1641325390895,33.54081108,168.47,168.39,4.0]
[1641325391100,33.54081108,168.47,168.38,1.62737439]
[1641325391295,38.00581108,168.47,168.38,1.62737439]
[1641325391696,38.00581108,168.47,168.37,30.66479]
[1641325391896,4.465,168.47,168.37,27.66479]
[1641325392696,33.54081108,168.48,168.37,27.66479]
[1641325392896,27.66479,168.49,168.38,7.13073766]
[1641325394900,27.66479,168.49,168.39,4.0]
[1641325395599,27.66479,168.49,168.42,4.0]
[1641325395800,27.66479,168.49,168.42,7.0]
[1641325396001,27.66479,168.49,168.39,12.13]
[1641325396399,27.66479,168.49,168.41,3.0]
[1641325396999,20.96722659,168.49,168.41,27.66479]
[1641325397199,20.96722659,168.49,168.39,55.83351269]
[1641325397402,28.68522659,168.49,168.39,51.83351269]
[1641325397900,3.0,168.47,168.39,51.83351269]
[1641325398099,3.0,168.46,168.39,7.13073766]
[1641325398300,3.0,168.47,168.39,7.13073766]
[1641325398703,35.39973772,168.49,168.35,33.54081108]
[1641325398901,27.66479,168.39,168.35,33.54081108]
[1641325399102,32.45379,168.39,168.35,33.54081108]
[1641325399301,32.45379,168.39,168.33,33.54081108]
[1641325399802,4.789,168.39,168.33,33.54081108]
[1641325400202,27.66479,168.42,168.32,4.0]
[1641325400403,27.66479,168.42,168.32,10.221]
[1641325400603,27.66479,168.42,168.32,6.221]
[1641325401003,27.66479,168.42,168.32,33.88579]
[1641325402904,27.66479,168.39,168.32,6.221]
[1641325403105,27.66479,168.39,168.29,97.47231108]
[1641325403306,27.66479,168.42,168.29,97.47231108]
[1641325403507,27.66479,168.42,168.3,3.0]
[1641325403809,27.66479,168.42,168.29,97.47231108]
[1641325404208,27.66479,168.42,168.31,33.54081108]
[1641325404810,27.66479,168.42,168.32,33.54081108]
[1641325405809,3.0,168.44,168.32,38.17281108]
[1641325407011,3.0,168.44,168.32,4.632]
[1641325407012,27.66479,168.42,168.32,4.632]
[1641325407211,27.66479,168.42,168.31,72.25738745]
[1641325407812,27.66479,168.42,168.31,27.66479]
[1641325410318,30.66479,168.42,168.29,94.47231108]
[1641325410518,27.66479,168.42,168.29,94.47231108]
[1641325410717,30.66479,168.42,168.29,94.47231108]
[1641325410919,30.66479,168.42,168.29,60.9315]
[1641325411122,27.66479,168.39,168.29,60.9315]
[1641325411519,34.98179,168.39,168.28,65.20560108]
[1641325411718,34.98179,168.39,168.28,61.20560108]
[1641325412020,3.0,168.38,168.35,4.1891992]
[1641325412219,3.0,168.36,168.28,33.54081108]
[1641325412419,3.0,168.35,168.28,33.54081108]
[1641325412623,8.762,168.35,168.28,33.54081108]
[1641325412918,8.762,168.35,168.28,12.57012861]
[1641325413118,27.66479,168.33,168.28,12.57012861]
[1641325413919,27.66479,168.33,168.26,12.57012861]
[1641325414922,3.0,168.31,168.22,33.54081108]
[1641325415122,27.66479,168.3,168.23,44.28924064]
[1641325415526,27.66479,168.3,168.18,50.13210151]
[1641325415723,3.0,168.24,168.07,109.95245313]
[1641325415924,3.0,168.22,168.12,50.29404091]
[1641325416326,3.0,168.23,168.12,50.29404091]
[1641325416524,3.0,168.22,168.12,50.29404091]
[1641325417124,27.66479,168.17,168.12,50.29404091]
[1641325417626,27.66479,168.17,168.08,36.58479]
[1641325418629,27.66479,168.17,168.08,39.58479]
[1641325418829,27.66479,168.19,168.09,4.0]
[1641325419031,27.66479,168.19,168.11,3.0]
[1641325419230,27.66479,168.24,168.13,3.0]
[1641325419529,27.66479,168.24,168.14,60.7008]
[1641325420934,27.66479,168.24,168.15,6.76094691]
[1641325421130,27.66479,168.24,168.15,11.12494691]
[1641325423131,27.66479,168.21,168.15,11.12494691]
[1641325425033,27.66479,168.21,168.15,4.364]
[1641325425334,27.66479,168.18,168.14,60.7008]
[1641325425533,27.66479,168.18,168.12,60.7148]
[1641325425734,27.66479,168.18,168.11,6.004]
[1641325425936,27.66479,168.18,168.08,105.92069]
[1641325426335,27.66479,168.18,168.09,6.1497548]
[1641325426536,27.66479,168.18,168.09,11.7877548]
[1641325427337,27.66479,168.21,168.09,11.7877548]
[1641325431445,2.93404744,168.2,168.1,1.25811018]
[1641325431645,2.93404744,168.2,168.12,3.0]
[1641325432345,2.93404744,168.22,168.14,4.0]
[1641325432545,2.93404744,168.22,168.14,9.009]
[1641325432947,2.93404744,168.22,168.14,5.009]
[1641325433548,2.93404744,168.22,168.15,1.25811018]
[1641325435347,27.66479,168.23,168.15,1.25811018]
[1641325438350,27.66479,168.23,168.15,7.40786498]
[1641325439052,27.66479,168.23,168.15,51.00027596]
[1641325440753,27.66479,168.23,168.16,33.53065026]
[1641325441956,27.66479,168.23,168.15,51.00027596]
[1641325443355,27.66479,168.23,168.15,40.93851524]
[1641325443557,2.93418189,168.22,168.15,1.25811018]
[1641325444357,2.93418189,168.22,168.15,5.25811018]
[1641325444758,2.93418189,168.22,168.15,8.25811018]
[1641325445057,2.93418189,168.22,168.15,5.25811018]
[1641325445258,2.93418189,168.22,168.16,1.25811018]
[1641325446161,2.93418189,168.24,168.18,12.57478228]
[1641325447863,15.50896417,168.24,168.17,12.57478228]
[1641325449864,15.50896417,168.24,168.16,19.98264726]
[1641325450868,2.93418189,168.24,168.17,12.57478228]
[1641325451771,3.0,168.22,168.17,12.57478228]
[1641325451969,6.702,168.22,168.17,12.57478228]
[1641325452168,3.0,168.21,168.17,12.57478228]
[1641325452370,3.0,168.2,168.17,12.57478228]
[1641325452869,3.0,168.2,168.13,19.98264726]
[1641325453471,3.0,168.2,168.13,13.83289246]
[1641325453670,30.59897189,168.19,168.13,1.25811018]
[1641325453871,3.0,168.18,168.13,1.25811018]
[1641325454073,7.523,168.18,168.13,1.25811018]
[1641325454272,3.0,168.16,168.13,1.25811018]
[1641325454872,3.0,168.16,168.12,12.57478228]
[1641325454873,15.57478228,168.16,168.11,1.25811018]
[1641325455675,27.66479,168.15,168.11,1.25811018]
[1641325455973,3.0,168.14,168.09,12.57478228]
[1641325456374,3.0,168.13,168.09,12.57478228]
[1641325456575,30.59897189,168.15,168.09,12.57478228]
[1641325456775,3.0,168.14,168.09,12.57478228]
[1641325456976,3.0,168.13,168.09,12.57478228]
[1641325457375,30.66479,168.15,168.09,12.57478228]
[1641325457575,27.66479,168.15,168.09,19.16678228]
[1641325457875,2.93625082,168.13,168.09,6.592]
[1641325458476,12.57478228,168.15,168.09,6.592]
[1641325458677,12.57478228,168.18,168.1,13.83289246]
[1641325459277,2.93527495,168.18,168.11,12.57478228]
[1641325460079,40.24433164,168.19,168.12,12.57478228]
[1641325460480,43.24433164,168.19,168.12,12.57478228]
[1641325460680,27.66479,168.19,168.12,12.57478228]
[1641325460879,2.9348467,168.18,168.13,12.57478228]
[1641325461079,2.9348467,168.18,168.13,17.96678228]
[1641325461780,40.24382074,168.19,168.14,1.25811018]
[1641325462280,2.93514888,168.18,168.13,5.392]
[1641325463080,27.66479,168.19,168.13,5.392]
[1641325463281,40.2440187,168.19,168.14,1.25792646]
[1641325464882,40.2440187,168.19,168.13,5.392]
[1641325465083,27.66479,168.19,168.13,5.392]
[1641325465383,27.66479,168.21,168.13,5.392]
[1641325465984,27.66479,168.21,168.12,31.66479]
[1641325465985,2.93424464,168.2,168.14,13.8328596]
[1641325466284,2.93424464,168.2,168.14,19.1118596]
[1641325467286,27.66479,168.21,168.15,4.0]
[1641325467486,12.5792287,168.22,168.15,4.0]
[1641325467686,40.2440187,168.24,168.16,12.57478228]
[1641325468586,2.93339767,168.23,168.17,12.57478228]
[1641325469586,27.66479,168.24,168.17,12.57478228]
[1641325470689,2.93333414,168.23,168.17,12.57478228]
[1641325471289,27.66479,168.24,168.17,12.57478228]
[1641325471891,2.93332649,168.23,168.17,12.57478228]
[1641325472390,27.66479,168.24,168.21,4.19154152]
[1641325473090,27.66479,168.24,168.18,6.338]
[1641325473591,2.93341637,168.23,168.18,6.338]
[1641325473791,2.93341637,168.23,168.17,12.57478228]
[1641325474193,12.57612954,168.23,168.19,5.4501205]
[1641325474892,12.57612954,168.23,168.15,40.23957228]
[1641325475094,18.50986687,168.23,168.16,19.98264193]
[1641325475694,15.50986687,168.23,168.16,19.98264193]
[1641325475894,27.66479,168.2,168.16,19.98264193]
[1641325476293,27.66479,168.2,168.17,4.19165225]
[1641325476895,27.66479,168.2,168.13,13.83294415]
[1641325477094,27.66479,168.2,168.19,4.19116424]
[1641325477496,22.10649598,168.2,168.19,4.19116424]
[1641325478102,25.03929864,168.2,168.15,12.57478228]
[1641325478699,2.93280266,168.19,168.16,4.19172837]
[1641325480503,15.5077594,168.19,168.15,4.19172837]
[1641325481003,21.3767594,168.19,168.15,4.19172837]
[1641325481205,8.80180266,168.19,168.16,4.19172837]
[1641325481603,3.0,168.18,168.16,4.19172837]
[1641325481803,27.66479,168.17,168.16,4.19172837]
[1641325482007,27.66479,168.17,168.16,2.837e-05]
[1641325482204,27.66479,168.17,168.12,12.57478228]
[1641325482404,27.66479,168.17,168.05,63.74342799]
[1641325482405,43.1725494,168.17,168.09,18.72364836]
[1641325483503,2.93280266,168.16,168.09,12.57478228]
[1641325484206,2.93280266,168.16,168.08,12.57478228]
[1641325484207,12.57495674,168.15,168.08,12.57478228]
[1641325485506,12.57495674,168.15,168.07,12.57478228]
[1641325485706,12.57495674,168.15,168.09,3.0]
[1641325485908,12.57495674,168.15,168.11,3.0]
[1641325486111,12.57495674,168.15,168.09,33.73679]
[1641325486308,12.57495674,168.15,168.1,3.0]
[1641325486510,2.93280266,168.16,168.1,16.83219208]
[1641325486710,2.93280266,168.16,168.1,13.83219208]
[1641325487710,2.93280266,168.19,168.12,12.57478228]
[1641325488510,15.5077594,168.19,168.11,19.98105816]
[1641325488710,15.5077594,168.19,168.11,23.33496278]
[1641325489312,2.93280266,168.19,168.14,12.57478228]
[1641325490114,2.93280266,168.19,168.13,12.57478228]
[1641325490817,2.93280266,168.19,168.12,13.83219208]
[1641325491817,2.93280266,168.19,168.12,1.2574098]
[1641325493319,2.93280266,168.19,168.12,12.57478228]
[1641325494318,2.93280266,168.19,168.14,12.57478228]
[1641325495021,22.10649598,168.2,168.15,12.57478228]
[1641325495220,102.98434674,168.22,168.15,12.57478228]
[1641325495420,40.23974674,168.22,168.15,12.57478228]
[1641325495720,2.93378886,168.21,168.15,12.57478228]
[1641325497223,2.93378886,168.21,168.16,7.0]
[1641325497423,2.93378886,168.21,168.16,12.57478228]
[1641325497822,2.93378886,168.21,168.16,47.23957228]
[1641325498023,27.66479,168.22,168.17,12.57478228]
[1641325498924,27.66479,168.22,168.18,12.57478228]
[1641325499124,12.57495674,168.26,168.18,12.57478228]
[1641325499324,12.57495674,168.26,168.18,22.07878228]
[1641325499525,12.57495674,168.26,168.19,7.0]
[1641325499825,12.57495674,168.27,168.2,40.23957228]
[1641325500725,12.57495674,168.27,168.21,1.2574098]
[1641325502226,12.57495674,168.28,168.21,1.2574098]
[1641325502928,2.93219803,168.29,168.23,7.0]
[1641325503126,12.57495674,168.3,168.25,3.0]
[1641325503325,12.57495674,168.3,168.23,9.949]
[1641325503326,4.20607952,168.3,168.27,7.0]
[1641325503626,4.20607952,168.3,168.27,10.602]
[1641325503825,4.20607952,168.3,168.27,6.602]
[1641325504026,33.53065026,168.33,168.27,34.26679]
[1641325504425,27.66479,168.36,168.27,34.26679]
[1641325504826,27.66479,168.36,168.27,6.602]
[1641325505529,10.60379942,168.35,168.27,6.602]